[Event "Summer Prague Open-A 2022"]
[Site "Prague"]
[Date "2022.08.07"]
[Round "4.8"]
[White "Kambrath, Yannick"]
[Black "Teichmann, Erik"]
[Result "1-0"]
[ECO "A10"]
[WhiteElo "2401"]
[BlackElo "2169"]
[Annotator "TA"]
[PlyCount "63"]
[EventDate "2022.08.05"]
[EventType "swiss"]
[EventCountry "CZE"]
[SourceTitle "playchess.com"]
[Source "ChessBase"]
[SourceQuality "1"]
[TimeControl "40/5400+30:1800+30"]

{[%evp 9,63,56,80,56,68,55,61,38,37,22,41,25,36,22,22,18,33,23,17,0,18,8,53,41,57,66,69,56,75,31,22,16,111,90,193,196,188,187,195,185,296,282,296,296,282,270,268,284,414,419,408,414,550,525,506,496]} 1. c4 {[%emt 0:01:11]} Nc6 {[%emt 0:01:09]} 2. Nc3 {[%emt 0:00:26]} d6 {[%emt 0:00:40]} 3. d4 {[%emt 0:01:19]} e5 {[%emt 0:00:08]} 4. Nf3 {[%emt 0:00:10]} Bg4 {[%emt 0:00:22]} 5. d5 {[%emt 0:05:45]} Nb8 {[%emt 0:00:29]} 6. e4 {[%emt 0:00:28] White is more active. A41: 1 d4 d6: Tartakower System and Modern Defence.} Nd7 {[%emt 0:00:54]} 7. Be2 {[%emt 0:00:36]} Be7 {[%emt 0:02:03] [#]} 8. Ng1 $146 {[%emt 0:07:30][%cal Bf3g1,Bg1e2,Be2c1,Bc1d3][%mdl 32] White is slightly better.} ({Predecessor:} 8. O-O Bxf3 9. Bxf3 Bg5 10. b4 Bxc1 11. Rxc1 Ngf6 12. Na4 a5 13. a3 axb4 14. axb4 {0-1 (52) Nabaty,T (2563)-Kosashvili,Y (2520) Israel 2012}) 8... Bxe2 {[%emt 0:00:50]} 9. Ngxe2 {[%emt 0:00:05]} a6 {[%emt 0:02:22]} 10. O-O {[%emt 0:00:35]} Bg5 {[%emt 0:04:45]} 11. Rb1 {[%emt 0:06:29]} Bxc1 {[%emt 0:02:07]} 12. Nxc1 {[%emt 0:00:32]} Nh6 {[%emt 0:00:59]} 13. b4 {[%emt 0:01:24]} O-O {[%emt 0:00:12]} 14. Nd3 {[%emt 0:00:35]} Qh4 {[%emt 0:07:37]} 15. g3 {[%emt 0:12:16]} Qf6 {[%emt 0:04:21]} 16. c5 {[%emt 0:02:56]} Qg6 {[%emt 0:05:19]} 17. c6 {[%emt 0:08:39]} bxc6 {[%emt 0:04:08]} 18. dxc6 {[%emt 0:00:02]} Nb6 {[%emt 0:04:44]} 19. a4 {[%emt 0:03:30][%cal Ba2a4,Ba4a5][%mdl 32]} f5 {[%emt 0:03:21]} 20. f3 {[%emt 0:11:02]} Rae8 {[%emt 0:02:01]} (20... f4 $11) 21. Qe2 {[%emt 0:02:11]} Nf7 {[%emt 0:12:45] [#]} (21... d5 $16) 22. a5 $1 $18 {[%emt 0:05:38]} Nc8 {[%emt 0:01:02]} 23. Nd5 {[%emt 0:02:04]} Ne7 {[%emt 0:02:04] aiming for ...Nxd5.} 24. Nxc7 {[%emt 0:07:37]} Nxc6 {[%emt 0:00:35]} (24... Rc8 {is a better defense.}) 25. exf5 {[%emt 0:01:36]} ({Weaker is} 25. Nxe8 Nd4 26. Qa2 Rxe8 $16) 25... Qxf5 {[%emt 0:00:55]} 26. Nxe8 {[%emt 0:00:28]} Rxe8 {[%emt 0:00:05]} 27. Qe4 {[%emt 0:00:25]} Qxe4 {[%emt 0:01:26]} 28. fxe4 {[%emt 0:00:07] [#] Threatens to win with b5.} Ng5 {[%emt 0:00:25]} (28... Nd4 $142 29. h4 Nd8) 29. b5 {[%emt 0:03:59]} axb5 {[%emt 0:00:21]} 30. Rxb5 {[%emt 0:00:10]} Nxe4 {[%emt 0:00:30]} 31. a6 {[%emt 0:01:06]} Ra8 {[%emt 0:01:04]} 32. Rb6 {[%emt 0:01:30] Weighted Error Value: White=0.07 (flawless) /Black=0.31} 1-0

[Event "Summer Prague Open-A 2022"]
[Site "Prague"]
[Date "2022.08.07"]
[Round "4.9"]
[White "Aepfler, Christian"]
[Black "Weishaeutel, Moritz"]
[Result "0-1"]
[ECO "B22"]
[WhiteElo "2202"]
[BlackElo "2400"]
[Annotator "TA"]
[PlyCount "62"]
[EventDate "2022.08.05"]
[EventType "swiss"]
[EventCountry "CZE"]
[SourceTitle "playchess.com"]
[Source "ChessBase"]
[SourceQuality "1"]
[TimeControl "40/5400+30:1800+30"]

{[%evp 15,62,9,0,0,31,35,45,-20,-22,-20,0,-7,-10,-27,-29,-47,0,0,-4,-31,-36,-33,-21,-21,-22,-49,-49,-46,-46,-58,-59,-155,-156,-159,-151,-163,-157,-175,-169,-305,-312,-302,-308,-296,-301,-281,-272,-334,-301]} 1. e4 {[%emt 0:00:03] Erenburg,S} c5 {[%emt 0:00:04]} 2. c3 {[%emt 0:00:18]} d5 {[%emt 0:00:05]} 3. exd5 {[%emt 0:00:21]} Qxd5 {[%emt 0:00:06]} 4. d4 {[%emt 0:00:22]} g6 {[%emt 0:00:07]} 5. Nf3 {[%emt 0:01:13]} Bg7 {[%emt 0:00:07]} 6. Be2 {[%emt 0:01:25]} cxd4 {[%emt 0:00:15]} 7. cxd4 {[%emt 0:00:46]} Nf6 {[%emt 0:00:08]} 8. O-O {[%emt 0:00:52]} O-O {[%emt 0:00:20]} 9. Ne5 {[%emt 0:09:12] [#] B06: Modern Defence.} Nfd7 $146 {[%emt 0:10:30]} ({Predecessor:} 9... Nc6 10. Nc3 Qd6 11. Nb5 Qd8 12. Bf3 Bd7 13. Nc3 Qa5 14. Nxd7 Nxd7 15. Bxc6 bxc6 {½-½ (39) Mamedyarov,S (2646)-Kulaots,K (2530) Moscow 2004 CBM 100 [Erenburg,S]}) 10. Nc3 {[%emt 0:06:25]} Qd6 {[%emt 0:01:08]} 11. Bf4 {[%emt 0:20:53]} (11. Nb5 $14 Qb6 12. Be3) 11... Nxe5 $11 {[%emt 0:06:48]} 12. dxe5 {[%emt 0:00:09]} Qxd1 {[%emt 0:05:37]} 13. Rfxd1 {[%emt 0:00:57]} Nc6 {[%emt 0:00:08]} 14. Nd5 {[%emt 0:01:15]} Be6 {[%emt 0:07:05]} 15. Nc7 {[%emt 0:03:54]} Rac8 {[%emt 0:00:13]} 16. Nxe6 {[%emt 0:00:25]} fxe6 {[%emt 0:00:04]} 17. Bg3 {[%emt 0:00:18]} Nxe5 {[%emt 0:03:59]} 18. Rac1 {[%emt 0:01:12] Against Rc2} Rfd8 {[%emt 0:09:15]} 19. Rxd8+ {[%emt 0:00:09]} Rxd8 {[%emt 0:00:05]} 20. Rc2 {[%emt 0:04:14] Prevents Rd2.} Nc6 {[%emt 0:06:15]} 21. Kf1 {[%emt 0:00:54]} Kf7 {[%emt 0:01:54]} 22. a3 {[%emt 0:09:01]} a5 {[%emt 0:06:53]} 23. b4 {[%emt 0:19:36]} (23. Bc7 $15 Rd7 24. Bb6) 23... axb4 $17 {[%emt 0:01:55]} 24. axb4 {[%emt 0:00:09]} Nxb4 {[%emt 0:01:19]} 25. Rc7 {[%emt 0:00:19] [#]} b6 $1 {[%emt 0:01:04]} 26. Rb7 {[%emt 0:02:24]} Nd5 {[%emt 0:01:28]} 27. f4 {[%emt 0:05:10]} (27. Bh4 {might work better.}) 27... Ra8 $19 {[%emt 0:07:28] And now ...Ra1+ would win. Black has a decisive advantage.} 28. Bf3 {[%emt 0:01:29]} Bd4 {[%emt 0:02:28]} 29. Ke2 {[%emt 0:00:15]} Bc5 {[%emt 0:04:37]} 30. Kd3 {[%emt 0:00:11]} Ra4 {[%emt 0:01:35]} 31. f5 {[%emt 0:01:17]} Rd4+ {[%emt 0:01:20] Weighted Error Value: White=0.28 (precise) /Black=0.06 (flawless)} 0-1

[Event "Summer Prague Open-A 2022"]
[Site "Prague"]
[Date "2022.08.07"]
[Round "4.10"]
[White "Prilleltensky, Matan"]
[Black "Neuman, Petr"]
[Result "1/2-1/2"]
[ECO "E24"]
[WhiteElo "2191"]
[BlackElo "2378"]
[Annotator "RC"]
[PlyCount "80"]
[EventDate "2022.08.05"]
[EventType "swiss"]
[EventCountry "CZE"]
[SourceTitle "playchess.com"]
[Source "ChessBase"]
[SourceQuality "1"]
[TimeControl "40/5400+30:1800+30"]

1. d4 {[%emt 0:00:02]} Nf6 {[%emt 0:00:07]} 2. c4 {[%emt 0:00:06]} e6 {[%emt 0:00:05]} 3. Nc3 {[%emt 0:00:20]} Bb4 {[%emt 0:00:13]} 4. a3 {[%emt 0:00:05]} Bxc3+ {[%emt 0:00:10]} 5. bxc3 {[%emt 0:00:06]} c5 {[%emt 0:01:16]} 6. f3 {[%emt 0:00:14]} Nh5 {[%emt 0:02:48]} 7. Nh3 {[%emt 0:01:33]} f5 {[%emt 0:01:20]} 8. e4 {[%emt 0:03:12]} d6 {[%emt 0:07:41]} 9. Bd3 {[%emt 0:05:48]} O-O {[%emt 0:01:01]} 10. exf5 {[%emt 0:10:05]} exf5 {[%emt 0:01:50]} 11. O-O {[%emt 0:01:11]} Nc6 {[%emt 0:02:09]} 12. Bg5 {[%emt 0:07:51]} Nf6 {[%emt 0:05:14]} 13. Nf4 {[%emt 0:07:48]} h6 {[%emt 0:00:54]} 14. Bxf6 {[%emt 0:00:21]} Qxf6 {[%emt 0:00:04]} 15. Nd5 {[%emt 0:00:29]} Qf7 {[%emt 0:00:24]} 16. Re1 {[%emt 0:06:44]} Be6 {[%emt 0:07:50]} 17. dxc5 {[%emt 0:13:42]} dxc5 {[%emt 0:00:55]} 18. Qa4 {[%emt 0:06:53]} Rac8 {[%emt 0:05:43]} 19. Rad1 {[%emt 0:04:46]} b6 {[%emt 0:01:43]} 20. Qc2 {[%emt 0:02:25]} Rcd8 {[%emt 0:06:17]} 21. Qa2 {[%emt 0:10:41]} Na5 {[%emt 0:01:25]} 22. Re5 {[%emt 0:01:46]} Nc6 {[%emt 0:03:31]} 23. Ree1 {[%emt 0:01:15]} Rfe8 {[%emt 0:00:30]} 24. Qb1 {[%emt 0:02:05]} Bc8 {[%emt 0:02:11]} 25. f4 {[%emt 0:01:54]} h5 {[%emt 0:03:59]} 26. Qc2 {[%emt 0:02:06]} Rxe1+ {[%emt 0:02:15]} 27. Rxe1 {[%emt 0:00:05]} Re8 {[%emt 0:00:52]} 28. Rxe8+ {[%emt 0:02:22]} Qxe8 {[%emt 0:00:02]} 29. Kf2 {[%emt 0:00:54]} Qe6 {[%emt 0:01:19]} 30. Qd1 {[%emt 0:03:34]} g6 {[%emt 0:00:40]} 31. Qf3 {[%emt 0:02:25]} Kg7 {[%emt 0:00:45]} 32. Qg3 {[%emt 0:00:44]} Ne7 {[%emt 0:00:54]} 33. Ne3 {[%emt 0:01:36]} Qf6 {[%emt 0:01:11]} 34. Be2 {[%emt 0:01:04]} Kf7 {[%emt 0:00:27]} 35. Nd5 {[%emt 0:00:25]} Qd6 {[%emt 0:00:49]} 36. Bf3 {[%emt 0:01:10]} Be6 {[%emt 0:00:33]} 37. Nxe7 {[%emt 0:00:29]} Qxe7 {[%emt 0:00:03]} 38. Be2 {[%emt 0:00:37]} Qd6 {[%emt 0:06:19]} 39. Qe3 {[%emt 0:00:23]} Kf6 {[%emt 0:00:40]} 40. h4 {[%emt 0:00:38]} Bf7 {[%emt 0:00:14]} 1/2-1/2

[Event "Summer Prague Open-A 2022"]
[Site "Prague"]
[Date "2022.08.07"]
[Round "4.11"]
[White "Hollan, Martin"]
[Black "Ehrlich, Roy"]
[Result "1/2-1/2"]
[ECO "C15"]
[WhiteElo "2399"]
[BlackElo "2183"]
[Annotator "TA"]
[PlyCount "78"]
[EventDate "2022.08.05"]
[EventType "swiss"]
[EventCountry "CZE"]
[SourceTitle "playchess.com"]
[Source "ChessBase"]
[SourceQuality "1"]
[TimeControl "40/5400+30:1800+30"]

{[%evp 11,78,24,23,12,58,0,82,87,81,82,89,76,62,52,68,18,56,63,60,44,48,36,54,58,82,83,96,96,104,103,117,100,117,114,117,58,58,58,58,58,72,70,75,70,77,78,72,0,0,0,0,0,0,0,0,0,0,0,20,0,0,0,43,0,0,0,58,0,0]} 1. e4 {[%emt 0:00:02]} e6 {[%emt 0:00:03]} 2. d4 {[%emt 0:00:07]} d5 {[%emt 0:00:04]} 3. Nc3 {[%emt 0:00:06]} Bb4 {[%emt 0:00:05]} 4. Nge2 {[%emt 0:00:06]} Nc6 {[%emt 0:00:05]} 5. a3 {[%emt 0:00:24]} Ba5 {[%emt 0:00:22]} 6. b4 {[%emt 0:07:10]} Bb6 {[%emt 0:00:04]} 7. Bb2 {[%emt 0:00:07] C15: French: 3 Nc3 Bb4: Unusual White 4th moves.} Nge7 {[%emt 0:11:31]} 8. Qd3 {[%emt 0:04:35]} (8. g3 $14) 8... e5 {[%emt 0:07:37]} (8... O-O $11) 9. Nxd5 $16 {[%emt 0:01:54] White is better.} Nxd5 {[%emt 0:03:52]} 10. exd5 {[%emt 0:00:09]} Nxd4 {[%emt 0:00:09]} 11. Nxd4 {[%emt 0:01:15]} (11. Bxd4 $6 exd4 12. Nxd4 a5 13. Qe4+ Qe7 14. Qxe7+ Kxe7 $11) 11... exd4 {[%emt 0:00:30]} 12. Qe4+ {[%emt 0:16:20]} (12. Bxd4 {with more complications.} Qe7+ 13. Be2 Bf5 14. Qxf5 Bxd4 15. O-O-O) 12... Qe7 {[%emt 0:00:14]} 13. Qxe7+ {[%emt 0:00:07]} Kxe7 {[%emt 0:00:04]} 14. O-O-O {[%emt 0:00:09] [#]} a5 $146 {[%emt 0:14:11]} ({Predecessor:} 14... Rd8 15. Bxd4 Bxd4 16. Rxd4 Be6 17. Bc4 c6 18. Rhd1 cxd5 19. Bxd5 Bxd5 20. Rxd5 Rxd5 21. Rxd5 {½-½ (33) Legky,N (2391)-Nguyen,C (2370) Paris 2014}) 15. b5 {[%emt 0:02:12]} Bc5 {[%emt 0:06:08]} 16. a4 {[%emt 0:01:11]} Kd6 {[%emt 0:11:06]} 17. Bxd4 {[%emt 0:01:44]} Bxd4 {[%emt 0:00:07]} 18. Rxd4 {[%emt 0:00:03]} Re8 {[%emt 0:00:32]} 19. Bd3 {[%emt 0:05:59]} Bd7 {[%emt 0:03:06]} 20. Kd2 {[%emt 0:17:09]} (20. Bxh7 g6 21. Rhd1 Re7 $15) 20... b6 {[%emt 0:00:53]} 21. Rf4 {[%emt 0:07:23]} (21. Bxh7 $6 g6 $11) 21... Re7 {[%emt 0:00:28]} 22. h4 {[%emt 0:05:41]} ({Reject} 22. Bxh7 $6 g6 $11) 22... h6 {[%emt 0:00:36]} 23. Be2 {[%emt 0:01:50]} (23. Kc3 $16) 23... f6 {[%emt 0:02:36]} 24. Bf3 {[%emt 0:02:02]} Rae8 {[%emt 0:01:19]} 25. Ra1 {[%emt 0:03:02]} Bc8 {[%emt 0:07:27]} 26. Ra3 {[%emt 0:04:18]} Re5 {[%emt 0:00:35]} 27. Rc3 {[%emt 0:00:41]} Bb7 {[%emt 0:00:37] Against Rc6+} 28. Rfc4 {[%emt 0:00:09]} R8e7 {[%emt 0:01:10]} 29. Rc6+ {[%emt 0:06:33]} Bxc6 $11 {[%emt 0:00:05]} 30. Rxc6+ {[%emt 0:00:03][%mdl 4096] Endgame KRR-KRB} Kd7 {[%emt 0:00:02]} 31. d6 {[%emt 0:00:07]} R7e6 {[%emt 0:05:30]} ({But not} 31... cxd6 32. Rxb6 Rc5 33. Ra6 $16) 32. Rxc7+ {[%emt 0:00:14]} Kxd6 {[%emt 0:00:15]} 33. Rxg7 {[%emt 0:00:30]} Rc5 {[%emt 0:04:18]} 34. Kd3 {[%emt 0:06:29]} Rc7 {[%emt 0:07:36]} 35. Rg6 {[%emt 0:04:02]} f5 {[%emt 0:01:18]} 36. Rg8 {[%emt 0:00:05]} Re1 {[%emt 0:02:02]} 37. Rg6+ {[%emt 0:04:28]} Re6 {[%emt 0:00:47]} 38. Rg8 {[%emt 0:00:28]} Re1 {[%emt 0:00:03]} 39. Rg6+ {[%emt 0:00:03]} ({White should play} 39. Rb8 $14) 39... Re6 {Weighted Error Value: White=0.11 (very precise) /Black=0.10 (very precise)} 1/2-1/2

[Event "Summer Prague Open-A 2022"]
[Site "Prague"]
[Date "2022.08.07"]
[Round "4.12"]
[White "Svatos, Jan"]
[Black "Meissner, Felix"]
[Result "1-0"]
[ECO "B28"]
[WhiteElo "2185"]
[BlackElo "2381"]
[Annotator "RC"]
[PlyCount "71"]
[EventDate "2022.08.05"]
[EventType "swiss"]
[EventCountry "CZE"]
[SourceTitle "playchess.com"]
[Source "ChessBase"]
[SourceQuality "1"]
[TimeControl "40/5400+30:1800+30"]

1. e4 {[%emt 0:00:03]} c5 {[%emt 0:03:57]} 2. Nf3 {[%emt 0:00:08]} a6 {[%emt 0:00:22]} 3. d4 {[%emt 0:00:36]} cxd4 {[%emt 0:00:08]} 4. Nxd4 {[%emt 0:00:04]} Nf6 {[%emt 0:00:16]} 5. Nc3 {[%emt 0:00:06]} e5 {[%emt 0:00:43]} 6. Nb3 {[%emt 0:02:14]} Bb4 {[%emt 0:05:41]} 7. Bc4 {[%emt 0:23:00]} Qc7 {[%emt 0:04:33]} 8. Qe2 {[%emt 0:05:32]} b5 {[%emt 0:09:00]} 9. Bd3 {[%emt 0:00:12]} Bxc3+ {[%emt 0:15:05]} 10. bxc3 {[%emt 0:00:08]} d6 {[%emt 0:02:18]} 11. O-O {[%emt 0:04:41]} Be6 {[%emt 0:03:08]} 12. a4 {[%emt 0:03:26]} bxa4 {[%emt 0:02:55]} 13. Rxa4 {[%emt 0:00:21]} Qxc3 {[%emt 0:01:58]} 14. Bc4 {[%emt 0:15:23]} Bg4 {[%emt 0:08:35]} 15. f3 {[%emt 0:00:14]} Bd7 {[%emt 0:00:10]} 16. Bd2 {[%emt 0:14:27]} Qb2 {[%emt 0:11:10]} 17. Raa1 {[%emt 0:00:25]} d5 {[%emt 0:08:08]} 18. exd5 {[%emt 0:04:59]} Qxc2 {[%emt 0:07:47]} 19. Qxe5+ {[%emt 0:00:34]} Kf8 {[%emt 0:00:33]} 20. Qc7 {[%emt 0:09:53]} Ne8 {[%emt 0:02:40]} 21. Qc5+ {[%emt 0:01:36]} Kg8 {[%emt 0:00:06]} 22. Rfe1 {[%emt 0:05:23]} h6 {[%emt 0:04:02]} 23. d6 {[%emt 0:03:18]} Qg6 {[%emt 0:04:47]} 24. Bd5 {[%emt 0:01:29]} Nc6 {[%emt 0:01:03]} 25. Bxc6 {[%emt 0:00:19]} Rc8 {[%emt 0:00:07]} 26. Bxd7 {[%emt 0:03:30]} Rxc5 {[%emt 0:00:12]} 27. Rxe8+ {[%emt 0:00:02]} Kh7 {[%emt 0:00:08]} 28. Rxh8+ {[%emt 0:00:05]} Kxh8 {[%emt 0:00:05]} 29. Nxc5 {[%emt 0:00:11]} Qc2 {[%emt 0:02:19]} 30. Ne4 {[%emt 0:00:44]} g6 {[%emt 0:01:27]} 31. Rc1 {[%emt 0:00:49]} Qd3 {[%emt 0:00:02]} 32. Rc8+ {[%emt 0:01:02]} Kh7 {[%emt 0:00:07]} 33. Nf6+ {[%emt 0:00:36]} Kg7 {[%emt 0:00:01]} 34. Bc3 {[%emt 0:00:05]} h5 {[%emt 0:02:18]} 35. Nxh5+ {[%emt 0:00:21]} Kh6 {[%emt 0:00:21]} 36. Rh8+ {[%emt 0:00:05]} 1-0

[Event "Summer Prague Open-A 2022"]
[Site "Prague"]
[Date "2022.08.07"]
[Round "4.13"]
[White "Roubalik, Jakub"]
[Black "Demeter, Dorina"]
[Result "1-0"]
[ECO "D43"]
[WhiteElo "2380"]
[BlackElo "2176"]
[Annotator "RC"]
[PlyCount "91"]
[EventDate "2022.08.05"]
[EventType "swiss"]
[EventCountry "CZE"]
[SourceTitle "playchess.com"]
[Source "ChessBase"]
[SourceQuality "1"]
[TimeControl "40/5400+30:1800+30"]

1. d4 {[%emt 0:00:03]} d5 {[%emt 0:00:46]} 2. c4 {[%emt 0:00:12]} c6 {[%emt 0:00:39]} 3. Nc3 {[%emt 0:00:11]} Nf6 {[%emt 0:00:13]} 4. Nf3 {[%emt 0:00:28]} e6 {[%emt 0:00:38]} 5. Bg5 {[%emt 0:00:18]} h6 {[%emt 0:00:12]} 6. Bh4 {[%emt 0:01:08]} Be7 {[%emt 0:03:04]} 7. e3 {[%emt 0:00:26]} O-O {[%emt 0:00:23]} 8. Qc2 {[%emt 0:01:05]} b6 {[%emt 0:06:46]} 9. Be2 {[%emt 0:02:33]} Ba6 {[%emt 0:02:59]} 10. b3 {[%emt 0:03:00]} Nbd7 {[%emt 0:04:33]} 11. O-O {[%emt 0:01:41]} dxc4 {[%emt 0:14:37]} 12. bxc4 {[%emt 0:00:47]} Ne8 {[%emt 0:01:19]} 13. Bxe7 {[%emt 0:01:32]} Qxe7 {[%emt 0:00:06]} 14. Rab1 {[%emt 0:08:47]} e5 {[%emt 0:13:36]} 15. Qa4 {[%emt 0:17:03]} Bb7 {[%emt 0:01:53]} 16. c5 {[%emt 0:01:01]} exd4 {[%emt 0:08:28]} 17. exd4 {[%emt 0:00:14]} Ndf6 {[%emt 0:00:46]} 18. Rfe1 {[%emt 0:02:02]} Qd8 {[%emt 0:02:20]} 19. Qb3 {[%emt 0:05:34]} b5 {[%emt 0:03:06]} 20. Rbd1 {[%emt 0:13:04]} Nc7 {[%emt 0:02:48]} 21. Ne5 {[%emt 0:01:01]} Ncd5 {[%emt 0:18:17]} 22. Bf3 {[%emt 0:00:34]} Nxc3 {[%emt 0:01:36]} 23. Qxc3 {[%emt 0:00:04]} Qc7 {[%emt 0:00:55]} 24. g3 {[%emt 0:04:15]} Rad8 {[%emt 0:00:42]} 25. Qb3 {[%emt 0:08:50]} Nd5 {[%emt 0:01:18]} 26. Be4 {[%emt 0:02:56]} a5 {[%emt 0:02:26]} 27. Qf3 {[%emt 0:01:22]} Bc8 {[%emt 0:00:59]} 28. h4 {[%emt 0:03:21]} Be6 {[%emt 0:01:47]} 29. Bb1 {[%emt 0:02:14]} g6 {[%emt 0:05:05]} 30. h5 {[%emt 0:08:11]} Kg7 {[%emt 0:00:50]} 31. hxg6 {[%emt 0:07:37]} fxg6 {[%emt 0:00:07]} 32. Qg2 {[%emt 0:00:07]} Bf5 {[%emt 0:02:02]} 33. Bxf5 {[%emt 0:00:29]} Rxf5 {[%emt 0:00:17]} 34. Rd2 {[%emt 0:00:47]} a4 {[%emt 0:00:22]} 35. Rde2 {[%emt 0:01:03]} Nc3 {[%emt 0:00:50]} 36. Re3 {[%emt 0:00:14]} Nd5 {[%emt 0:00:04]} 37. Re4 {[%emt 0:00:38]} Rdf8 {[%emt 0:00:51]} 38. R4e2 {[%emt 0:02:03]} Nc3 {[%emt 0:00:27]} 39. Rd2 {[%emt 0:00:24]} Nd5 {[%emt 0:00:19]} 40. Qe4 {[%emt 0:00:49]} R8f6 {[%emt 0:01:25]} 41. Nxg6 {[%emt 0:11:53]} Rg5 {[%emt 0:26:10]} 42. Ne5 {[%emt 0:02:10]} Nf4 {[%emt 0:01:40]} 43. Re3 {[%emt 0:05:22]} Qc8 {[%emt 0:02:08]} 44. Rf3 {[%emt 0:01:54]} Nd5 {[%emt 0:01:33]} 45. Rxf6 {[%emt 0:01:19]} Kxf6 {[%emt 0:00:26]} 46. Qh7 {[%emt 0:01:00]} 1-0

[Event "Summer Prague Open-A 2022"]
[Site "Prague"]
[Date "2022.08.07"]
[Round "4.14"]
[White "Sarkar, Justin"]
[Black "Seitz, Patrick"]
[Result "1-0"]
[ECO "A61"]
[WhiteElo "2346"]
[BlackElo "2170"]
[Annotator "RC"]
[PlyCount "53"]
[EventDate "2022.08.05"]
[EventType "swiss"]
[EventCountry "CZE"]
[SourceTitle "playchess.com"]
[Source "ChessBase"]
[SourceQuality "1"]
[TimeControl "40/5400+30:1800+30"]

1. d4 {[%emt 0:01:21]} Nf6 {[%emt 0:00:11]} 2. c4 {[%emt 0:00:12]} c5 {[%emt 0:00:22]} 3. d5 {[%emt 0:00:21]} e6 {[%emt 0:00:08]} 4. Nc3 {[%emt 0:01:12]} exd5 {[%emt 0:00:08]} 5. cxd5 {[%emt 0:00:06]} d6 {[%emt 0:00:06]} 6. Nf3 {[%emt 0:15:27]} g6 {[%emt 0:08:11]} 7. Nd2 {[%emt 0:00:15]} Bg7 {[%emt 0:00:45]} 8. e4 {[%emt 0:00:18]} O-O {[%emt 0:00:14]} 9. Be2 {[%emt 0:00:12]} b6 {[%emt 0:00:46]} 10. O-O {[%emt 0:02:02]} Qe7 {[%emt 0:01:29]} 11. Re1 {[%emt 0:01:06]} Nfd7 {[%emt 0:02:40]} 12. Bf1 {[%emt 0:07:51]} Ba6 {[%emt 0:02:19]} 13. Bxa6 {[%emt 0:00:25]} Nxa6 {[%emt 0:00:05]} 14. Nc4 {[%emt 0:00:11]} Ne5 {[%emt 0:00:57]} 15. Nxe5 {[%emt 0:22:08]} Bxe5 {[%emt 0:01:48]} 16. f4 {[%emt 0:00:17]} Bg7 {[%emt 0:01:25]} 17. e5 {[%emt 0:15:21]} Rad8 {[%emt 0:09:01]} 18. Nb5 {[%emt 0:12:48]} dxe5 {[%emt 0:03:57]} 19. fxe5 {[%emt 0:00:17]} Bxe5 {[%emt 0:00:45]} 20. Bf4 {[%emt 0:00:50]} f6 {[%emt 0:03:59]} 21. d6 {[%emt 0:00:48]} Qe6 {[%emt 0:01:58]} 22. a3 {[%emt 0:04:47]} Nb8 {[%emt 0:01:31]} 23. Nc7 {[%emt 0:04:32]} Qxd6 {[%emt 0:02:19]} 24. Qb3+ {[%emt 0:00:12]} Rf7 {[%emt 0:00:22]} 25. Bxe5 {[%emt 0:00:22]} fxe5 {[%emt 0:00:30]} 26. Ne6 {[%emt 0:00:07]} Qd5 {[%emt 0:02:56]} 27. Rad1 1-0

[Event "Summer Prague Open-A 2022"]
[Site "Prague"]
[Date "2022.08.07"]
[Round "4.15"]
[White "Laverton, Christian"]
[Black "Ranaldi, Lucas"]
[Result "0-1"]
[ECO "E32"]
[WhiteElo "2149"]
[BlackElo "2339"]
[Annotator "RC"]
[PlyCount "54"]
[EventDate "2022.08.05"]
[EventType "swiss"]
[EventCountry "CZE"]
[SourceTitle "playchess.com"]
[Source "ChessBase"]
[SourceQuality "1"]
[TimeControl "40/5400+30:1800+30"]

1. d4 {[%emt 0:00:06]} Nf6 {[%emt 0:00:07]} 2. c4 {[%emt 0:00:15]} e6 {[%emt 0:00:07]} 3. Nc3 {[%emt 0:01:15]} Bb4 {[%emt 0:00:13]} 4. Qc2 {[%emt 0:00:45]} b6 {[%emt 0:01:27]} 5. a3 {[%emt 0:02:03]} Bxc3+ {[%emt 0:00:16]} 6. Qxc3 {[%emt 0:00:04]} Bb7 {[%emt 0:00:10]} 7. Nf3 {[%emt 0:01:49]} Ne4 {[%emt 0:01:38]} 8. Qc2 {[%emt 0:01:56]} f5 {[%emt 0:00:32]} 9. b4 {[%emt 0:06:17]} a5 {[%emt 0:03:33]} 10. Bb2 {[%emt 0:02:07]} axb4 {[%emt 0:03:59]} 11. axb4 {[%emt 0:00:20]} Rxa1+ {[%emt 0:05:59]} 12. Bxa1 {[%emt 0:00:07]} O-O {[%emt 0:03:06]} 13. g3 {[%emt 0:04:48]} Nc6 {[%emt 0:20:08]} 14. Qb2 {[%emt 0:14:13]} Qe7 {[%emt 0:02:49]} 15. c5 {[%emt 0:02:48]} Ra8 {[%emt 0:05:01]} 16. Bg2 {[%emt 0:02:59]} Nxb4 {[%emt 0:02:06]} 17. O-O {[%emt 0:02:21]} Nd5 {[%emt 0:00:36]} 18. Rc1 {[%emt 0:05:06]} d6 {[%emt 0:13:43]} 19. cxb6 {[%emt 0:03:26]} Nxb6 {[%emt 0:01:25]} 20. Nd2 {[%emt 0:04:20]} Bd5 {[%emt 0:03:17]} 21. Nxe4 {[%emt 0:05:11]} fxe4 {[%emt 0:04:35]} 22. Qb1 {[%emt 0:03:29]} e3 {[%emt 0:20:42]} 23. fxe3 {[%emt 0:02:10]} Bxg2 {[%emt 0:00:21]} 24. Kxg2 {[%emt 0:00:05]} d5 {[%emt 0:00:24]} 25. e4 {[%emt 0:08:35]} Nc4 {[%emt 0:00:39]} 26. Bc3 {[%emt 0:09:02]} Qg5 {[%emt 0:00:58]} 27. Bb4 {[%emt 0:01:41]} Qe3 {[%emt 0:03:15]} 0-1